bitfinex/quotes_SOLUSD_20250201
["timestamp","ask_amount","ask_price","bid_price","bid_amount"]
[1738393747333,9.25557176,231.43,231.42,0.063]
[1738393749047,8.64859215,231.43,231.42,0.063]
[1738393749228,0.60697961,231.44,231.42,0.063]
[1738393750827,8.64859215,231.43,231.42,0.063]
[1738393760432,0.432,231.45,231.42,0.063]
[1738393760631,1.03897961,231.45,231.42,0.063]
[1738393762845,1.06897961,231.47,231.42,0.063]
[1738393764248,0.462,231.47,231.42,0.063]
[1738393764437,0.462,231.47,231.42,1.7234]
[1738393764438,0.03,231.47,231.42,1.7234]
[1738393765230,0.03,231.47,231.45,8.64859215]
[1738393766050,0.03,231.47,231.44,8.64859215]
[1738393766538,0.03,231.47,231.46,8.64859215]
[1738393768047,0.03,231.47,231.44,8.64859215]
[1738393769750,82.6,231.46,231.44,8.64859215]
[1738393770657,82.6,231.46,231.44,12.96929215]
[1738393772035,82.6,231.46,231.44,8.64859215]
[1738393780056,82.6,231.46,231.42,10.37199215]
[1738393780263,82.6,231.46,231.42,1.7234]
[1738393781562,82.6,231.45,231.42,1.7234]
[1738393782364,82.6,231.45,231.42,10.37199215]
[1738393800981,82.6,231.45,231.42,8.71159215]
[1738393816289,82.6,231.45,231.44,8.64859215]
[1738393822876,82.6,231.45,231.42,0.063]
[1738393823204,82.6,231.44,231.42,0.063]
[1738393826098,82.6,231.43,231.42,0.063]
[1738393830403,82.6,231.43,231.42,8.71159215]
[1738393833715,82.6,231.43,231.42,0.063]
[1738393839999,83.032,231.43,231.42,0.063]
[1738393840203,91.68059215,231.43,231.42,0.063]
[1738393841811,9.08059215,231.43,231.42,0.063]
[1738393841990,9.68757176,231.43,231.42,0.063]
[1738393843609,9.68757176,231.43,231.4,0.063]
[1738393843610,6.3859,231.42,231.4,0.063]
[1738393843924,9.25557176,231.41,231.4,0.063]
[1738393845526,9.68767176,231.41,231.4,0.063]
[1738393860828,0.4321,231.41,231.4,0.063]
[1738393874041,9.08069215,231.41,231.4,0.063]
[1738393879860,0.4321,231.41,231.4,0.063]
[1738393902488,0.03,231.42,231.4,0.063]
[1738393902710,0.4621,231.42,231.4,0.063]
[1738393903099,0.03,231.42,231.4,0.063]
[1738393903268,0.03,231.42,231.4,8.71159215]
[1738393906984,0.03,231.42,231.4,0.063]
[1738393914106,0.60697961,231.41,231.4,0.063]
[1738393914601,1.03907961,231.41,231.4,0.063]
[1738393924510,9.68767176,231.41,231.4,0.063]
[1738393926991,0.4321,231.41,231.4,0.063]
[1738393966657,0.03,231.42,231.4,0.063]
[1738393966957,0.4621,231.42,231.4,0.063]
[1738393967458,1.06907961,231.42,231.4,0.063]
[1738393967754,0.4621,231.42,231.4,0.063]
[1738393968762,82.6,231.41,231.4,0.063]
[1738393968941,83.0321,231.41,231.4,0.063]
[1738393974776,0.03,231.42,231.4,0.063]
[1738393974955,0.4621,231.42,231.4,0.063]
[1738393980866,83.0321,231.41,231.4,0.063]
[1738393986578,0.4321,231.41,231.4,0.063]
[1738393986966,0.03,231.42,231.4,0.063]
[1738393992582,83.0321,231.41,231.4,0.063]
[1738393993770,83.63907961,231.41,231.4,0.063]
[1738393998495,1.03907961,231.41,231.4,0.063]
[1738394000595,20.0,231.4,231.39,0.063]
[1738394000780,13.41184853,231.39,231.38,0.0001]
[1738394000983,22.66742029,231.39,231.38,0.0001]
[1738394003200,23.09952029,231.39,231.38,0.0001]
[1738394006805,34.41184853,231.37,231.36,0.0001]
[1738394007110,43.66742029,231.37,231.36,0.0001]
[1738394009687,44.09962029,231.37,231.36,0.0001]
[1738394010088,20.0,231.33,231.32,0.063]
[1738394010293,29.25557176,231.33,231.32,0.0001]
[1738394011317,42.66742029,231.33,231.32,0.0001]
[1738394011619,43.09962029,231.33,231.32,0.0001]
[1738394015505,51.02452029,231.33,231.32,0.0001]
[1738394017909,2.0,231.3,231.23,0.063]
[1738394018100,8.64859215,231.27,231.23,0.063]
[1738394018405,8.64859215,231.27,231.26,0.0001]
[1738394018609,9.25557176,231.27,231.26,0.0001]
[1738394020108,9.25557176,231.27,231.2,0.063]
[1738394020109,20.0,231.24,231.2,0.063]
[1738394020293,8.64859215,231.21,231.2,0.063]
[1738394020814,9.25557176,231.21,231.2,0.063]
[1738394022191,9.68807176,231.21,231.2,0.063]
[1738394025215,0.4325,231.21,231.2,0.063]
[1738394028813,1.03947961,231.21,231.2,0.063]
[1738394029096,0.4325,231.21,231.2,0.063]
[1738394034223,0.4324,231.23,231.2,8.71159215]
[1738394034520,0.4324,231.23,231.22,8.64859215]
[1738394035028,0.4324,231.23,231.21,8.64859215]
[1738394035227,0.4324,231.23,231.2,8.71159215]
[1738394036126,1.0809,231.27,231.2,8.71159215]
[1738394036328,1.5132,231.27,231.2,8.71159215]
[1738394038032,0.4324,231.25,231.2,0.063]
[1738394038606,0.60697961,231.24,231.2,0.063]
[1738394039134,0.4324,231.25,231.2,0.063]
[1738394040427,1.03937961,231.25,231.2,0.063]
[1738394043028,82.6,231.24,231.2,0.063]
[1738394043234,0.4324,231.23,231.2,0.063]
[1738394049043,0.4325,231.21,231.2,0.063]
[1738394055029,0.4324,231.24,231.2,0.063]
[1738394055953,0.4324,231.24,231.2,8.71159215]
[1738394056141,0.4324,231.24,231.21,8.64859215]
[1738394056926,0.4324,231.24,231.2,8.71159215]
[1738394057146,0.4324,231.25,231.2,8.71159215]
[1738394058226,10.76897176,231.25,231.2,0.063]
[1738394059032,8.64859215,231.23,231.2,0.063]
[1738394060251,0.4324,231.22,231.2,0.063]
[1738394060946,82.6,231.21,231.2,0.063]
[1738394061448,83.0325,231.21,231.2,0.063]
[1738394062928,92.28807176,231.21,231.2,0.063]
[1738394063124,91.68109215,231.21,231.2,0.063]
[1738394063626,9.08109215,231.21,231.2,0.063]
[1738394063833,9.68807176,231.21,231.2,0.063]
[1738394064132,21.0,231.18,231.16,0.0001]
[1738394064333,9.25557176,231.17,231.16,0.0001]
[1738394064831,9.68807176,231.17,231.16,0.0001]
[1738394065032,0.4325,231.17,231.16,0.0001]
[1738394071756,9.08109215,231.17,231.16,0.0001]
[1738394072058,9.68807176,231.17,231.16,0.0001]
[1738394072859,9.68807176,231.17,231.0,5.585e-05]
[1738394072860,1.0,231.05,231.0,5.585e-05]
[1738394073038,8.64859215,231.01,230.96,0.03005585]
[1738394073239,0.60697961,231.0,230.96,0.03005585]
[1738394073936,82.6,230.99,230.96,0.03005585]
[1738394074344,8.64859215,230.97,230.96,0.03005585]
[1738394075945,8.64859215,230.97,230.96,0.03]
[1738394076664,9.08149215,230.97,230.96,0.03]
[1738394078275,9.08149215,230.97,230.87,8.64859215]
[1738394078276,20.0,230.94,230.85,8.64859215]
[1738394078560,10.16379215,230.97,230.83,1.5288]
[1738394078561,8.64859215,230.9,230.83,1.5288]
[1738394079546,8.64859215,230.9,230.83,10.17739215]
[1738394080354,0.4331,230.89,230.83,10.17739215]
[1738394082962,1.04007961,230.89,230.83,8.64859215]
[1738394083152,8.64859215,230.88,230.8,8.64859215]
[1738394084360,1.04007961,230.87,230.8,8.64859215]
[1738394084772,0.4331,230.87,230.8,8.64859215]
[1738394089751,9.08169215,230.87,230.8,8.64859215]
[1738394090957,9.08169215,230.87,230.8,8.67859215]
[1738394091165,0.4331,230.87,230.8,8.67859215]
[1738394091373,0.4331,230.87,230.8,0.03]
[1738394092577,10.33827176,230.89,230.8,0.03]
[1738394092781,0.4331,230.88,230.8,0.03]
[1738394092966,0.4331,230.88,230.8,8.67859215]
[1738394093668,82.6,230.87,230.8,8.67859215]
[1738394093865,82.6,230.87,230.82,8.64859215]
[1738394094172,82.6,230.87,230.84,8.64859215]
[1738394094475,83.0331,230.87,230.84,8.64859215]
[1738394094664,83.0331,230.87,230.85,8.64859215]
[1738394095055,83.0331,230.87,230.84,8.64859215]
[1738394095973,83.0331,230.87,230.82,8.64859215]
[1738394097979,83.0331,230.87,230.8,8.67859215]
[1738394100580,83.64007961,230.87,230.8,8.67859215]
[1738394100785,83.64007961,230.87,230.8,0.03]
[1738394101682,8.64859215,230.86,230.8,0.03]
[1738394101882,0.4331,230.85,230.8,0.03]
[1738394102464,9.08169215,230.85,230.8,0.03]
[1738394104881,92.33139215,230.87,230.8,8.67859215]
[1738394105194,0.4331,230.86,230.81,8.64859215]
[1738394107161,0.4331,230.86,230.82,8.64859215]
[1738394112792,0.4331,230.86,230.83,8.64859215]
[1738394112994,0.4331,230.86,230.85,8.64859215]
[1738394113692,0.4331,230.86,230.84,8.64859215]
[1738394114099,0.4331,230.86,230.82,8.64859215]
[1738394116392,0.4331,230.86,230.8,8.67859215]
[1738394118378,1.04007961,230.86,230.8,0.03]
[1738394118578,9.68867176,230.86,230.8,0.03]
[1738394118779,8.64859215,230.84,230.8,0.03]
[1738394119888,9.08169215,230.85,230.8,0.03]
[1738394120101,0.4331,230.85,230.8,0.03]
[1738394125699,0.4331,230.85,230.8,8.67859215]
[1738394125916,82.6,230.87,230.82,8.64859215]
[1738394126203,83.0331,230.87,230.83,8.64859215]
[1738394126806,83.0331,230.87,230.82,8.64859215]
[1738394127385,83.0331,230.87,230.81,8.64859215]
[1738394130311,83.0331,230.87,230.83,8.64859215]
[1738394133113,82.6,230.87,230.85,8.64859215]
[1738394133411,0.4331,230.89,230.85,8.64859215]
[1738394134714,0.4331,230.89,230.83,8.64859215]
[1738394135201,0.4331,230.89,230.82,8.64859215]
[1738394136414,8.64859215,230.89,230.82,8.64859215]
[1738394137014,8.64859215,230.89,230.82,0.03]
[1738394137399,0.4331,230.88,230.82,8.67859215]
[1738394141922,11.95387176,230.91,230.82,8.67859215]
[1738394142126,0.433,230.9,230.82,8.67859215]
[1738394146030,9.25557176,230.89,230.82,0.03]
[1738394147030,0.4331,230.88,230.82,0.03]
[1738394147530,9.25557176,230.87,230.82,0.03]
[1738394147735,8.64859215,230.83,230.82,0.03]
[1738394149926,9.08179215,230.83,230.82,0.03]
[1738394151323,0.4332,230.83,230.82,0.03]
[1738394152130,83.0332,230.83,230.82,0.03]
[1738394152314,91.68179215,230.83,230.82,0.03]
[1738394152730,83.0332,230.83,230.82,0.03]
[1738394152950,92.28877176,230.83,230.82,0.03]
[1738394153135,91.68179215,230.83,230.82,0.03]
[1738394153849,91.68179215,230.83,230.8,0.0001]
[1738394153850,20.0,230.81,230.8,0.0001]
[1738394154028,29.25557176,230.81,230.8,0.0001]
[1738394154340,9.68877176,230.81,230.8,0.0001]
[1738394158931,23.10062029,230.81,230.8,0.0001]
[1738394163356,30.64939655,230.81,230.8,0.0001]
[1738394163559,21.0,230.78,230.67,10.26539215]
[1738394163745,21.0,230.78,230.67,1.6168]
[1738394163746,8.64859215,230.74,230.67,1.6168]
[1738394164059,8.64859215,230.74,230.66,8.64859215]
[1738394164256,8.64859215,230.72,230.65,8.64859215]
[1738394164476,9.25557176,230.71,230.64,8.64859215]
[1738394164634,8.64859215,230.71,230.64,8.64859215]
[1738394165033,0.4334,230.7,230.63,8.64859215]
[1738394165256,8.64859215,230.68,230.61,8.64859215]
[1738394165455,0.60697961,230.67,230.6,8.64859215]
[1738394166037,9.25557176,230.68,230.6,8.64859215]
[1738394166441,0.4335,230.67,230.62,8.64859215]
[1738394166742,0.4335,230.67,230.63,8.64859215]
[1738394166950,0.4335,230.67,230.62,8.64859215]
[1738394167363,0.60697961,230.66,230.6,8.64859215]
[1738394168368,8.64859215,230.65,230.59,0.03]
[1738394168561,9.08209215,230.66,230.59,8.67859215]
[1738394168733,0.60697961,230.65,230.59,8.67859215]
[1738394169280,0.60697961,230.65,230.59,0.03]
[1738394169571,9.25557176,230.65,230.59,0.03]
[1738394170365,8.64859215,230.6,230.58,0.03]
[1738394170539,1.04057961,230.59,230.58,0.03]
[1738394173969,9.68917176,230.59,230.58,0.03]
[1738394175945,1.04057961,230.59,230.58,0.03]
[1738394177292,0.4336,230.59,230.58,0.03]
[1738394179472,0.4336,230.62,230.58,0.03]
[1738394179852,0.4336,230.62,230.58,8.67859215]
[1738394180172,0.4336,230.62,230.59,8.64859215]
[1738394180564,0.4336,230.62,230.58,0.03]
[1738394180565,0.4336,230.62,230.58,8.67859215]
[1738394180874,0.4335,230.64,230.58,8.67859215]
[1738394182648,29.08209215,230.66,230.59,8.64859215]
[1738394183364,9.25557176,230.65,230.58,8.67859215]
[1738394183575,8.64859215,230.64,230.58,0.03]
[1738394183888,8.64859215,230.63,230.58,0.03]
[1738394184471,0.4336,230.62,230.58,0.03]
[1738394185678,0.4966,230.62,230.58,0.03]
[1738394187285,0.4966,230.62,230.6,8.64859215]
[1738394187491,0.063,230.62,230.61,8.64859215]
[1738394187982,0.063,230.62,230.59,8.64859215]
[1738394188470,0.063,230.62,230.6,8.64859215]
[1738394188675,0.063,230.62,230.61,8.64859215]
[1738394191973,0.063,230.62,230.6,8.64859215]
[1738394192589,0.063,230.62,230.59,8.64859215]
[1738394192870,9.14519215,230.62,230.58,0.03]
[1738394193675,0.4966,230.62,230.58,0.03]
[1738394196800,0.4966,230.62,230.58,8.67859215]
[1738394196984,0.4966,230.62,230.59,8.64859215]
[1738394200106,0.063,230.62,230.59,8.64859215]
[1738394200599,0.4966,230.62,230.59,8.64859215]
[1738394201904,0.063,230.62,230.59,8.64859215]
[1738394202105,0.063,230.62,230.61,8.64859215]
[1738394207906,0.063,230.62,230.61,22.06044068]
[1738394208302,0.063,230.62,230.61,8.64859215]
[1738394209111,0.063,230.62,230.6,8.64859215]
[1738394209494,0.063,230.62,230.61,8.64859215]
[1738394210619,0.063,230.62,230.6,8.64859215]
[1738394211404,0.063,230.62,230.61,8.64859215]
[1738394213520,0.063,230.62,230.6,8.64859215]
[1738394214037,0.063,230.62,230.59,8.67859215]
[1738394216519,0.4966,230.62,230.59,0.03]
[1738394219432,0.063,230.62,230.6,8.64859215]
[1738394220431,0.063,230.62,230.59,8.67859215]
[1738394220630,0.4966,230.62,230.59,0.03]
[1738394223252,0.063,230.62,230.59,0.03]
[1738394223538,0.063,230.62,230.6,8.64859215]
[1738394224417,0.063,230.62,230.61,8.64859215]
[1738394229048,0.063,230.62,230.6,8.64859215]
[1738394230842,0.063,230.62,230.61,8.64859215]
[1738394232934,0.4966,230.62,230.59,0.03]
[1738394233624,9.14519215,230.62,230.59,0.03]
[1738394233825,8.64859215,230.61,230.59,0.03]
[1738394234340,9.75217176,230.62,230.59,0.03]
[1738394235253,9.08219215,230.6,230.59,0.03]
[1738394236429,0.4336,230.6,230.59,0.03]
[1738394236751,9.68917176,230.6,230.59,0.03]
[1738394239349,23.10102029,230.6,230.59,0.03]
[1738394240347,24.10102029,230.6,230.59,0.0001]
[1738394240551,13.41184853,230.59,230.58,0.0001]
[1738394240763,22.06044068,230.59,230.58,0.0001]
[1738394249896,30.70903268,230.59,230.58,0.0001]
[1738394251799,17.29718415,230.59,230.58,0.0001]
[1738394251965,8.64859215,230.59,230.58,0.0001]
[1738394254362,22.06044068,230.59,230.58,0.0001]
[1738394255795,22.12344068,230.59,230.58,0.0001]
[1738394255993,22.55704068,230.59,230.58,0.0001]
[1738394261108,20.0,230.55,230.45,8.64859215]
[1738394261282,8.64859215,230.52,230.45,8.64859215]
[1738394261476,8.64859215,230.5,230.43,10.26049215]
[1738394261692,8.64859215,230.48,230.43,1.6119]
[1738394262304,8.64859215,230.49,230.43,1.6119]
[1738394262512,0.60697961,230.48,230.43,1.6119]
[1738394262713,0.4338,230.47,230.43,1.6119]
[1738394263013,0.4338,230.47,230.41,15.00419215]
[1738394264184,0.4338,230.49,230.42,8.64859215]
[1738394264387,0.4338,230.49,230.43,8.64859215]
[1738394266489,0.60697961,230.48,230.41,15.00419215]
[1738394267121,9.08239215,230.49,230.41,15.00419215]
[1738394267412,1.04077961,230.49,230.42,8.64859215]
[1738394268801,0.4338,230.47,230.41,8.64859215]
[1738394269520,0.4338,230.47,230.42,8.64859215]
[1738394269720,0.4338,230.47,230.42,8.67859215]
[1738394270016,0.4338,230.49,230.42,8.67859215]
[1738394270418,0.60697961,230.48,230.42,8.67859215]
[1738394271222,0.4338,230.47,230.42,0.03]
[1738394271437,0.60697961,230.46,230.42,0.03]
[1738394272022,0.4338,230.47,230.42,0.03]
[1738394275156,9.08239215,230.47,230.42,0.03]
[1738394276046,0.60697961,230.46,230.42,0.03]
[1738394276457,9.68937176,230.47,230.42,0.03]
[1738394277523,8.64859215,230.46,230.42,0.03]
[1738394278748,0.4339,230.45,230.42,0.03]
[1738394281663,8.64859215,230.46,230.42,0.03]
[1738394281664,8.64859215,230.47,230.42,0.03]
[1738394282033,9.25557176,230.47,230.42,0.03]
[1738394283247,8.64859215,230.47,230.42,0.03]
[1738394283458,0.4338,230.5,230.45,8.64859215]
[1738394283962,0.4338,230.5,230.44,8.64859215]
[1738394284176,9.08239215,230.5,230.43,8.64859215]
[1738394284634,0.4338,230.5,230.44,8.64859215]
[1738394285749,0.4338,230.5,230.45,8.64859215]
[1738394286057,21.37971786,230.51,230.47,8.64859215]
[1738394286262,21.37971786,230.51,230.48,8.64859215]
[1738394287241,21.37971786,230.51,230.47,8.64859215]
[1738394288552,8.64859215,230.5,230.43,8.64859215]
[1738394288953,30.46211001,230.51,230.44,8.64859215]
[1738394290560,30.02831001,230.51,230.44,8.64859215]
[1738394290736,21.81351786,230.51,230.46,8.64859215]
[1738394305074,21.81351786,230.51,230.46,8.67859215]
[1738394318495,21.37971786,230.51,230.5,8.64859215]
[1738394318694,0.063,230.56,230.5,8.64859215]
[1738394318695,0.4967,230.56,230.5,8.64859215]
[1738394318901,0.063,230.56,230.52,8.64859215]
[1738394319094,0.063,230.56,230.54,8.64859215]
[1738394319396,0.063,230.56,230.55,8.64859215]
[1738394319981,0.063,230.56,230.55,22.71087815]
[1738394323218,0.063,230.56,230.55,8.64859215]
[1738394323903,0.063,230.56,230.51,4.338]
[1738394323904,0.063,230.56,230.54,8.64859215]
[1738394324503,0.063,230.56,230.53,8.64859215]
[1738394324703,0.063,230.56,230.52,8.64859215]
[1738394325920,0.063,230.56,230.53,8.64859215]
[1738394326425,0.063,230.56,230.5,2.84]
[1738394326426,0.063,230.56,230.54,8.64859215]
[1738394330926,0.4967,230.56,230.54,8.64859215]
[1738394333426,0.063,230.56,230.54,8.64859215]
[1738394333625,0.063,230.56,230.52,8.64859215]
[1738394334129,0.063,230.56,230.54,8.64859215]
[1738394340735,0.063,230.56,230.54,8.67859215]
[1738394348536,0.063,230.56,230.54,8.64859215]
[1738394350826,0.4967,230.56,230.54,8.64859215]
[1738394353245,0.4967,230.56,230.54,8.67859215]
[1738394353545,0.063,230.56,230.54,8.67859215]
[1738394361255,0.063,230.56,230.54,8.17859215]
[1738394364344,0.063,230.56,230.54,0.03]
[1738394364545,0.4967,230.56,230.54,0.03]
[1738394365751,0.063,230.56,230.54,8.67859215]
[1738394366745,0.4967,230.56,230.54,0.03]
[1738394367231,0.4967,230.56,230.54,8.67859215]
[1738394372297,0.4967,230.56,230.54,0.03]
[1738394373095,8.64859215,230.55,230.54,0.03]
[1738394373392,9.14529215,230.56,230.54,0.03]
[1738394373795,9.25557176,230.55,230.54,0.03]
[1738394375093,9.68927176,230.55,230.54,0.03]
[1738394376798,9.08229215,230.55,230.54,0.03]
[1738394383906,9.08229215,230.55,230.54,0.0001]
[1738394384103,22.49414068,230.55,230.54,0.0001]
[1738394397525,9.08229215,230.55,230.54,0.0001]
[1738394397828,0.4337,230.55,230.54,0.0001]
[1738394399533,20.4337,230.55,230.54,0.0001]
[1738394400520,0.4337,230.55,230.54,8.64869215]
[1738394401020,0.4337,230.55,230.54,0.0001]
[1738394402231,9.08229215,230.55,230.54,0.0001]
[1738394402423,9.14529215,230.55,230.54,0.0001]
[1738394403634,22.55714068,230.55,230.54,0.0001]
[1738394410143,24.18884068,230.55,230.54,0.0001]
[1738394410643,22.55714068,230.55,230.54,0.0001]
[1738394420448,20.0,230.51,230.46,0.03]
[1738394420747,8.64859215,230.47,230.46,0.03]
[1738394420936,22.06044068,230.47,230.46,0.03]
[1738394422755,22.49424068,230.47,230.46,0.03]
[1738394425380,22.49424068,230.47,230.4,6.0657]
[1738394425547,8.64859215,230.45,230.4,6.0657]
[1738394425942,8.64859215,230.46,230.4,6.0657]
[1738394427555,0.4339,230.45,230.4,6.0657]
[1738394430279,0.4339,230.45,230.39,8.64859215]
[1738394432374,8.64859215,230.45,230.38,10.29549215]
[1738394433880,8.64859215,230.44,230.38,1.6469]
[1738394434476,8.64859215,230.43,230.36,8.64859215]
[1738394434880,8.64859215,230.41,230.35,14.83399215]
[1738394435455,8.64859215,230.42,230.35,14.83399215]
[1738394436755,0.434,230.41,230.35,14.83399215]
[1738394438392,8.64859215,230.43,230.36,8.64859215]
[1738394439671,8.64859215,230.42,230.35,28.67859215]
[1738394440704,0.434,230.41,230.35,28.67859215]
[1738394451871,8.64859215,230.43,230.37,8.64859215]
[1738394452078,0.4339,230.43,230.37,8.64859215]
[1738394452272,0.4339,230.43,230.38,8.64859215]
[1738394452981,9.08249215,230.44,230.37,8.64859215]
[1738394453697,8.64859215,230.43,230.37,8.64859215]
[1738394454486,9.08249215,230.43,230.36,8.64859215]
[1738394454890,9.08249215,230.43,230.35,4.3712]
[1738394454891,8.64859215,230.42,230.35,8.67859215]
[1738394455101,8.64859215,230.41,230.35,0.03]
[1738394458302,8.64859215,230.42,230.35,0.03]
[1738394459994,9.08249215,230.44,230.36,8.64859215]
[1738394461212,0.063,230.42,230.36,8.64859215]
[1738394461397,0.497,230.42,230.36,8.64859215]
[1738394464306,0.497,230.42,230.35,0.03]
[1738394468612,0.497,230.42,230.36,8.64859215]
[1738394469694,0.063,230.42,230.36,8.64859215]
[1738394469894,0.063,230.42,230.38,8.64859215]
[1738394471026,0.063,230.42,230.36,8.64859215]
[1738394471220,0.4969,230.42,230.36,8.64859215]
[1738394473391,9.14549215,230.42,230.35,0.03]
[1738394473597,9.14549215,230.42,230.36,0.03]
[1738394484318,0.4969,230.42,230.36,0.03]
[1738394484531,0.4969,230.42,230.37,8.64859215]
[1738394488949,0.4969,230.42,230.38,8.64859215]
[1738394491767,0.4969,230.42,230.37,8.64859215]
[1738394492070,0.4969,230.42,230.36,8.67859215]
[1738394493570,9.14549215,230.42,230.36,0.03]
[1738394493866,8.64859215,230.4,230.36,0.03]
[1738394494177,9.08259215,230.39,230.36,0.03]
[1738394495371,0.434,230.39,230.36,0.03]
[1738394500594,9.08259215,230.39,230.36,0.03]
[1738394504771,8.64859215,230.38,230.36,0.03]
[1738394504977,0.434,230.37,230.36,0.03]
[1738394505999,9.08259215,230.37,230.36,0.03]
[1738394506695,9.68957176,230.37,230.36,0.03]
[1738394507889,23.10142029,230.37,230.36,0.03]
[1738394510695,9.68957176,230.37,230.36,0.03]
[1738394510874,9.08259215,230.37,230.36,0.03]
[1738394520128,22.49444068,230.37,230.36,0.03]
[1738394520810,22.49444068,230.37,230.36,0.0001]
[1738394521522,13.41184853,230.36,230.3,0.03]
[1738394521809,8.64859215,230.33,230.3,0.03]
[1738394522997,0.4341,230.32,230.3,0.03]
[1738394529019,0.4341,230.34,230.3,0.03]
[1738394531517,8.64859215,230.34,230.3,0.03]
[1738394533309,0.4341,230.33,230.3,0.03]
[1738394534826,8.64859215,230.35,230.3,0.03]
[1738394535404,8.64859215,230.34,230.3,0.03]
[1738394536825,0.4341,230.33,230.3,0.03]
[1738394541009,8.64859215,230.31,230.3,0.03]
[1738394542228,22.06044068,230.31,230.3,0.03]
[1738394543129,22.49454068,230.31,230.3,0.03]
[1738394546741,20.0,230.28,230.22,0.03]
[1738394546919,8.64859215,230.23,230.22,0.03]
[1738394548356,8.64859215,230.23,230.12,0.15]
[1738394548357,8.64859215,230.13,230.12,0.15]
[1738394548830,9.08309215,230.13,230.05,8.32859215]
[1738394549034,8.64859215,230.12,230.05,8.32859215]
[1738394549419,0.4345,230.13,230.05,8.32859215]
[1738394549420,9.08309215,230.13,230.05,8.32859215]
[1738394549815,9.08309215,230.13,230.06,8.64859215]
[1738394550335,0.4345,230.13,230.08,8.64859215]
[1738394551222,0.4345,230.13,230.07,8.64859215]
[1738394552544,0.4345,230.13,230.08,8.64859215]
[1738394553649,0.4345,230.13,230.09,8.64859215]
[1738394553832,27.78970965,230.16,230.09,8.64859215]
[1738394554154,0.4344,230.15,230.09,8.64859215]
[1738394554935,19.1411175,230.16,230.12,8.64859215]
[1738394555137,19.1411175,230.16,230.15,8.64859215]
[1738394555351,19.1411175,230.16,230.14,8.64859215]
[1738394555552,19.1411175,230.16,230.13,8.64859215]
[1738394556557,19.1411175,230.16,230.14,8.64859215]
[1738394556727,19.1411175,230.16,230.15,8.64859215]
[1738394568248,8.64859215,230.26,230.15,8.64859215]
[1738394568445,8.64859215,230.26,230.19,8.64859215]
[1738394568865,0.4343,230.25,230.19,8.64859215]
[1738394569363,0.4343,230.25,230.18,8.64859215]
[1738394570557,0.4343,230.25,230.19,8.64859215]
[1738394574185,0.4343,230.25,230.21,8.64859215]
[1738394575184,0.4343,230.25,230.22,8.64859215]
[1738394575382,0.4342,230.27,230.22,8.64859215]
[1738394575978,0.4342,230.27,230.21,8.64859215]
[1738394582564,9.08279215,230.27,230.2,8.64859215]
[1738394582745,9.08279215,230.27,230.19,8.64859215]
[1738394582952,8.64859215,230.26,230.19,8.64859215]
[1738394583669,0.4343,230.25,230.19,8.64859215]
[1738394585970,0.4343,230.25,230.2,8.64859215]
[1738394592866,0.4343,230.25,230.19,8.64859215]
[1738394594168,0.063,230.26,230.24,8.64859215]
[1738394594359,0.063,230.26,230.25,8.64859215]
[1738394597174,0.4972,230.26,230.23,8.64859215]
[1738394597974,0.4972,230.26,230.22,8.64859215]
[1738394598179,0.4972,230.26,230.2,8.64859215]
[1738394600464,9.14579215,230.26,230.19,8.64859215]
[1738394602156,0.4972,230.26,230.19,8.64859215]
[1738394602581,0.4972,230.26,230.21,8.64859215]
[1738394603683,0.4972,230.26,230.22,8.64859215]
[1738394603890,0.063,230.26,230.23,8.64859215]
[1738394604064,0.4972,230.26,230.23,8.64859215]
[1738394604265,0.4972,230.26,230.22,8.64859215]
[1738394605064,0.063,230.26,230.22,8.64859215]
[1738394605283,0.4972,230.26,230.22,8.64859215]
[1738394606091,0.4972,230.26,230.21,8.64859215]